[Event "CCT Airthings Masters Play-In 2023"]
[Site "Online"]
[Date "2023.02.03"]
[Round "3"]
[White "Igrok"]
[Black "amintabatabaei"]
[Result "1/2-1/2"]
[ECO "D38"]
[WhiteElo "2520"]
[BlackElo "2642"]
[Annotator "TA"]
[PlyCount "133"]
[EventDate "2023.02.03"]
[EventType "swiss"]
[EventCountry "NET"]
[SourceTitle "playchess.com"]
[Source "ChessBase"]
[SourceQuality "1"]
[TimeControl "600+2"]

{[%evp 19,133,0,0,-12,0,-36,-23,-18,36,31,29,0,8,-22,-6,-11,0,0,0,0,0,-47,22,0,0,0,0,0,0,0,0,0,0,0,-11,0,0,0,0,-12,-14,-14,0,0,0,0,0,0,0,0,0,0,0,0,0,0,0,0,1034,0,304,300,251,291,266,250,227,224,469,345,398,479,479,320,373,231,149,0,0,0,0,0,0,0,0,0,0,0,0,0,0,0,0,0,0,0,0,0,0,0,0,0,0,0,0,0,0,0,0,0,0,0,0,0,0,0]} 1. d4 {[%emt 0:00:03]} Nf6 {[%emt 0:00:05]} 2. c4 {[%emt 0:00:01]} e6 {[%emt 0:00:01]} 3. Nc3 {[%emt 0:00:02]} d5 {[%emt 0:00:11]} 4. cxd5 {[%emt 0:00:01]} exd5 {[%emt 0:00:00]} 5. Bg5 {[%emt 0:00:01]} Bb4 {[%emt 0:00:00]} 6. e3 {[%emt 0:00:06]} h6 {[%emt 0:00:02]} 7. Bxf6 {[%emt 0:00:05]} Qxf6 {[%emt 0:00:00]} 8. Qa4+ {[%emt 0:00:01]} Nc6 {[%emt 0:00:02]} 9. Rc1 {[%emt 0:00:01]} O-O {[%emt 0:00:03]} 10. Nf3 {[%emt 0:00:10]} Rd8 {[%emt 0:00:40]} 11. Bb5 {[%emt 0:00:40] D38: Queen's Gambit Declined: Ragozin Defence (4 Nf3 Bb4).} Bf8 {[%emt 0:00:15]} 12. Bxc6 {[%emt 0:00:16]} bxc6 {[%emt 0:00:00][%cal Bb7c6,Bc6c5,Bc5c4][%mdl 32]} 13. O-O {[%emt 0:00:02] [#] Black has an edge.} Bd6 $146 {[%emt 0:02:48]} (13... Rb8 $11) ({Predecessor:} 13... a5 14. Nb1 Ra6 15. Nbd2 Bf5 16. Ne5 Rb8 17. e4 dxe4 18. Rxc6 Rxc6 19. Nxc6 Bd7 20. d5 Bxc6 21. dxc6 Qxb2 22. Nb3 Bb4 23. g3 e3 24. fxe3 Qe2 {0-1 Formanek,E (2350)-Braga,F (2470) Christmas Congress 1985/86-61 Premier (7)}) 14. Ne5 $14 {[%emt 0:00:38]} Bb7 {[%emt 0:00:34]} 15. f4 {[%emt 0:00:32]} (15. Nd3 {seems wilder.} Qg6 16. Nc5 Qh5 17. h3) 15... c5 {[%emt 0:00:03]} 16. Qa5 {[%emt 0:01:14]} (16. Nc6 $5 {[%cal Rc6d8]}) 16... Qe7 {[%emt 0:01:00]} 17. Rfe1 {[%emt 0:00:15]} f6 {[%emt 0:00:07]} 18. Nd3 {[%emt 0:00:28][%cal Rd4c5] A dynamic duo of knights.} c4 {[%emt 0:01:02]} 19. Nc5 {[%emt 0:00:35]} Bxc5 {[%emt 0:00:01]} 20. dxc5 {[%emt 0:00:36]} (20. Qxc5 $11 {should be considered.} Qxc5 21. dxc5) 20... c6 {[%emt 0:00:30]} (20... Rab8 $15) 21. b3 {[%emt 0:00:35]} (21. e4 $5 {[%cal Re4d5]} Qd7 22. Rcd1 $11) 21... cxb3 {[%emt 0:00:01]} 22. axb3 {[%emt 0:00:00]} Bc8 {[%emt 0:00:00]} 23. b4 {[%emt 0:01:21]} Bf5 {[%emt 0:00:05]} 24. Qa3 {[%emt 0:00:17]} Bd3 {[%emt 0:00:28]} 25. Rcd1 {[%emt 0:00:24]} Bc4 {[%emt 0:00:03]} 26. Ne2 {[%emt 0:00:19]} Bxe2 {[%emt 0:00:42]} 27. Rxe2 {[%emt 0:00:00]} Kh8 {[%emt 0:00:02]} 28. Rd4 {[%emt 0:00:11]} Qb7 {[%emt 0:00:16]} 29. Qa5 {[%emt 0:00:07]} Re8 {[%emt 0:00:01]} 30. Kf2 {[%emt 0:00:08]} Re7 {[%emt 0:00:07]} 31. Ra2 {[%emt 0:00:06]} Rae8 {[%emt 0:00:25]} 32. Ra3 {[%emt 0:00:02]} Qd7 {[%emt 0:00:08]} 33. Qa4 {[%emt 0:00:04]} Qg4 {[%emt 0:00:15]} 34. Qxc6 {[%emt 0:00:19]} Qh4+ {[%emt 0:00:01]} 35. Ke2 {[%emt 0:00:32][%cal Bf2e2,Be2f3,Bf3g3,Bg3h2,Bh2h3][%mdl 32]} Qxh2 {[%emt 0:00:01]} 36. Qxd5 {[%emt 0:00:02] Active counter play!} Qg1 {[%emt 0:00:03][%cal Re7e3]} 37. Rdd3 {[%emt 0:00:15]} Re4 {[%emt 0:00:02]} 38. Kf3 {[%emt 0:00:20]} g5 $2 {[%emt 0:00:36][%mdl 8192]} (38... Qf1+ $11 39. Kg3 a5) 39. Qf5 $2 {[%emt 0:00:14]} (39. Qxe4 $18 Rxe4 40. Kxe4 Qxg2+ 41. Kf5) 39... Qf1+ $2 {[%emt 0:00:14][%mdl 8192]} (39... R4e6 $1 $11 {and Black has nothing to worry.}) 40. Kg3 $18 {[%emt 0:00:01]} Qe1+ {[%emt 0:00:08]} 41. Kh2 {[%emt 0:00:01]} Qh4+ {[%emt 0:00:04]} 42. Qh3 {[%emt 0:00:01]} Qxh3+ {[%emt 0:00:01]} 43. Kxh3 {[%emt 0:00:01]} gxf4 $2 {[%emt 0:00:01]} (43... Rxb4 {was called for.} 44. Rac3 (44. Rxa7 gxf4 45. exf4 Rc4 $18) 44... Rb7) 44. exf4 {[%emt 0:00:01]} (44. Rxa7 fxe3 45. Rdd7 Rxb4 $11) 44... Rxb4 {[%emt 0:00:01][%mdl 4096] Endgame KRR-KRR} 45. c6 {[%emt 0:00:03]} (45. Rxa7 Rc4 46. Rd6 Rxc5 47. Rxf6 Rh5+ 48. Kg4 Rh1 $18) 45... Rc4 {[%emt 0:00:14]} 46. Rac3 {[%emt 0:00:02]} ({Not} 46. Rxa7 Rxc6 47. Rdd7 f5 $16) 46... Rxc3 {[%emt 0:00:03]} 47. Rxc3 {[%emt 0:00:00] [#] Kg4 is the strong threat. KR-KR} f5 {[%emt 0:00:02]} 48. g4 {[%emt 0:00:11]} (48. Kh4 $16) 48... Kg7 $11 {[%emt 0:00:07] The position is equal.} 49. Rc5 {[%emt 0:00:01]} ({Don't take} 49. gxf5 a5 $14) ({Resist} 49. c7 Rc8 $14) 49... fxg4+ {[%emt 0:00:01]} 50. Kxg4 {[%emt 0:00:00]} Kf6 {[%emt 0:00:02]} 51. c7 {[%emt 0:00:04]} Rc8 {[%emt 0:00:01]} 52. f5 {[%emt 0:00:01]} a5 {[%emt 0:00:01][%cal Ba7a5,Ba5a4][%mdl 32]} 53. Kf4 {[%emt 0:00:03][%cal Of4e4]} a4 {[%emt 0:00:01]} 54. Rc6+ {[%emt 0:00:03]} Ke7 {[%emt 0:00:02]} 55. Ke5 {[%emt 0:00:03]} a3 {[%emt 0:00:00]} 56. Rxh6 {[%emt 0:00:06]} a2 {[%emt 0:00:07]} 57. Ra6 {[%emt 0:00:03] [#] Strongly threatening f6+.} Rxc7 {[%emt 0:00:01]} 58. Rxa2 {[%emt 0:00:01]} Rc5+ {[%emt 0:00:04]} 59. Kf4 {[%emt 0:00:01]} Rc6 {[%emt 0:00:01]} 60. Kg5 {[%emt 0:00:02][%cal Of5f6] And now f6+! would win.} Kf7 {[%emt 0:00:01]} 61. Re2 {[%emt 0:00:01]} Rb6 {[%emt 0:00:02]} 62. Ra2 {[%emt 0:00:02]} Rc6 {[%emt 0:00:00]} 63. Ra7+ {[%emt 0:00:02]} Kf8 {[%emt 0:00:01]} 64. Rb7 {[%emt 0:00:00]} Ra6 {[%emt 0:00:01]} 65. Rc7 {[%emt 0:00:02]} Rb6 {[%emt 0:00:01]} 66. f6 {[%emt 0:00:01]} Rb1 {[%emt 0:00:01]} 67. Rc8+ {[%emt 0:00:03] Black escapes into a draw.   Weighted Error Value: White=0.23 (precise) /Black=0.15 (very precise)} 1/2-1/2

[Event "CCT Airthings Masters Play-In 2023"]
[Site "Online"]
[Date "2023.02.03"]
[Round "3"]
[White "OK97"]
[Black "exoticprincess"]
[Result "1/2-1/2"]
[ECO "C42"]
[WhiteElo "2515"]
[BlackElo "2639"]
[Annotator "NA"]
[PlyCount "94"]
[EventDate "2023.02.03"]
[EventType "swiss"]
[EventCountry "NET"]
[SourceTitle "playchess.com"]
[Source "ChessBase"]
[SourceQuality "1"]
[TimeControl "600+2"]

1. e4 {[%emt 0:00:03]} e5 {[%emt 0:00:10]} 2. Nf3 {[%emt 0:00:01]} Nf6 {[%emt 0:00:01]} 3. Nxe5 {[%emt 0:00:03]} d6 {[%emt 0:00:01]} 4. Nf3 {[%emt 0:00:00]} Nxe4 {[%emt 0:00:00]} 5. d4 {[%emt 0:00:02]} d5 {[%emt 0:00:02]} 6. Bd3 {[%emt 0:00:01]} Bd6 {[%emt 0:00:01]} 7. O-O {[%emt 0:00:02]} O-O {[%emt 0:00:01]} 8. c4 {[%emt 0:00:02]} c6 {[%emt 0:00:01]} 9. Re1 {[%emt 0:00:09]} Re8 {[%emt 0:00:06]} 10. Nc3 {[%emt 0:00:07]} Nxc3 {[%emt 0:00:02]} 11. bxc3 {[%emt 0:00:01]} Rxe1+ {[%emt 0:00:14]} 12. Qxe1 {[%emt 0:00:00]} h6 {[%emt 0:00:13]} 13. c5 {[%emt 0:00:11]} Bc7 {[%emt 0:00:06]} 14. Qe3 {[%emt 0:00:14]} Nd7 {[%emt 0:00:13]} 15. h3 {[%emt 0:00:04]} Nf6 {[%emt 0:00:36]} 16. Ne5 {[%emt 0:00:06]} Be6 {[%emt 0:00:07]} 17. Rb1 {[%emt 0:00:18]} Rb8 {[%emt 0:00:01]} 18. Bd2 {[%emt 0:00:34]} Ne4 {[%emt 0:00:13]} 19. Bxe4 {[%emt 0:00:25]} dxe4 {[%emt 0:00:00]} 20. Qxe4 {[%emt 0:00:02]} Bxa2 {[%emt 0:00:05]} 21. Ra1 {[%emt 0:00:14]} Bd5 {[%emt 0:00:01]} 22. Qe3 {[%emt 0:01:49]} Ra8 {[%emt 0:01:25]} 23. c4 {[%emt 0:00:41]} Be6 {[%emt 0:00:04]} 24. Bc3 {[%emt 0:00:01]} Bxe5 {[%emt 0:00:44]} 25. Qxe5 {[%emt 0:00:14]} Bxc4 {[%emt 0:00:02]} 26. Rb1 {[%emt 0:01:02]} f6 {[%emt 0:01:28]} 27. Qg3 {[%emt 0:00:13]} Qb8 {[%emt 0:00:22]} 28. Qg4 {[%emt 0:00:24]} Bd5 {[%emt 0:00:15]} 29. Qd7 {[%emt 0:00:57]} b5 {[%emt 0:00:02]} 30. cxb6 {[%emt 0:00:23]} axb6 {[%emt 0:00:00]} 31. Re1 {[%emt 0:00:02]} Qf4 {[%emt 0:01:10]} 32. Re3 {[%emt 0:00:17]} Ra2 {[%emt 0:00:43]} 33. Rg3 {[%emt 0:00:32]} Qxf2+ {[%emt 0:00:12]} 34. Kh2 {[%emt 0:00:01]} Qxg2+ {[%emt 0:01:37]} 35. Rxg2 {[%emt 0:00:00]} Rxg2+ {[%emt 0:00:00]} 36. Kh1 {[%emt 0:00:01]} Rc2+ {[%emt 0:00:27]} 37. Kg1 {[%emt 0:00:02]} Rxc3 {[%emt 0:00:02]} 38. Qc8+ {[%emt 0:00:03]} Kh7 {[%emt 0:00:02]} 39. Qf5+ {[%emt 0:00:02]} Kh8 {[%emt 0:00:01]} 40. Qc8+ {[%emt 0:00:06]} Kh7 {[%emt 0:00:03]} 41. Qf5+ {[%emt 0:00:02]} g6 {[%emt 0:00:04]} 42. Qd7+ {[%emt 0:00:10]} Kh8 {[%emt 0:00:04]} 43. Qd8+ {[%emt 0:00:12]} Kg7 {[%emt 0:00:01]} 44. Qc7+ {[%emt 0:00:04]} Kh8 {[%emt 0:00:13]} 45. Qd8+ {[%emt 0:00:02]} Kg7 {[%emt 0:00:06]} 46. Qc7+ {[%emt 0:00:01]} Kg8 {[%emt 0:00:05]} 47. Qd8+ {[%emt 0:00:11]} Kg7 {[%emt 0:00:02]} 1/2-1/2

[Event "CCT Airthings Masters Play-In 2023"]
[Site "Online"]
[Date "2023.02.03"]
[Round "3"]
[White "Iniyan, P."]
[Black "SahajGrover"]
[Result "0-1"]
[ECO "A50"]
[WhiteElo "2514"]
[BlackElo "2612"]
[Annotator "TA"]
[PlyCount "114"]
[EventDate "2023.02.03"]
[EventType "swiss"]
[EventCountry "NET"]
[SourceTitle "playchess.com"]
[Source "ChessBase"]
[SourceQuality "1"]
[TimeControl "600+2"]

{[%evp 9,114,-2,7,7,6,0,0,10,0,-15,1,0,0,-39,23,18,20,19,48,0,0,0,0,0,0,-129,-109,-162,-165,-164,-172,-160,0,0,10,0,0,0,0,0,0,-464,-311,-309,-308,-295,-275,-257,-250,-272,-241,-248,-235,-225,-213,-205,-78,-108,-113,-203,-195,-212,-177,-238,-176,-178,-175,-214,-189,-190,-183,-282,-229,-214,0,-6535,-6528,-5514,-267,-2012,-267,-2591,-1919,-6832,-4934,-5293,-1595,-1597,-1082,-29976,-29977,-29978,-29979,-29979,-29980,-29980,-29981,-29981,-29982,-29982,-29983,-29983,-29984,-29984,-29984,-29987,-29988]} 1. d4 {[%emt 0:00:04]} Nf6 {[%emt 0:00:11]} 2. c4 {[%emt 0:00:05]} e6 {[%emt 0:00:01]} 3. Bf4 {[%emt 0:00:04]} Bb4+ {[%emt 0:00:50]} 4. Nd2 {[%emt 0:00:03]} O-O {[%emt 0:00:02]} 5. Ngf3 {[%emt 0:00:04]} b6 {[%emt 0:00:06]} 6. a3 {[%emt 0:00:09] A50: Queen's Fianchetto Defence (1 d4 Nf6 2 c4 b6).} Bxd2+ {[%emt 0:00:29]} 7. Nxd2 {[%emt 0:00:38]} Bb7 {[%emt 0:00:00] Wards off e4} 8. Qc2 {[%emt 0:00:01] The position is equal.} Nh5 {[%emt 0:00:15]} 9. Bg3 {[%emt 0:00:11]} f5 {[%emt 0:00:03]} 10. e3 {[%emt 0:00:08]} d6 {[%emt 0:00:39] [#]} 11. c5 $146 {[%emt 0:01:35]} ({Predecessor:} 11. f3 Nd7 12. Bf2 c5 13. dxc5 dxc5 14. Rd1 Qe7 15. Be2 e5 16. O-O Qg5 17. e4 Nf4 {0-1 Zirwes,H (1933)-Schloeffel,C (1898) SVR-ch MAT-I 33rd 2010 (5)}) 11... Kh8 {[%emt 0:01:47]} (11... f4 $15 12. exf4 dxc5) 12. Rc1 {[%emt 0:00:30] White wants to play cxd6.} bxc5 {[%emt 0:00:15]} 13. dxc5 {[%emt 0:00:04]} Nc6 {[%emt 0:00:30]} 14. Bb5 {[%emt 0:00:58]} (14. Be2 $14 Nxg3 15. hxg3) 14... f4 $11 {[%emt 0:00:09]} 15. cxd6 {[%emt 0:00:55]} cxd6 {[%emt 0:01:03]} 16. Bxc6 {[%emt 0:00:20]} Rc8 $1 {[%emt 0:01:14]} 17. Qd1 {[%emt 0:02:40]} (17. Bxb7 $11 Rxc2 18. Rxc2 fxg3 19. hxg3) 17... Bxc6 $17 {[%emt 0:00:02]} ({Not} 17... Nxg3 18. hxg3 Bxc6 19. gxf4 $11) 18. Qxh5 {[%emt 0:00:12]} (18. O-O $17) 18... Bxg2 $19 {[%emt 0:00:04][%mdl 64] [#] Discovered Attack} 19. Rxc8 {[%emt 0:00:08]} Qxc8 {[%emt 0:00:00]} 20. Rg1 {[%emt 0:00:04]} f3 {[%emt 0:00:28]} (20... fxg3 $17 21. Rxg2 gxf2+ 22. Rxf2 Qc1+ 23. Ke2 Rxf2+ {[%mdl 64] Overworked Piece} 24. Kxf2 Qxd2+ 25. Qe2 Qxe2+ 26. Kxe2 Kg8) 21. Kd1 $1 $11 {[%emt 0:00:19]} (21. Bxd6 $2 Qc1#) 21... Qc6 {[%emt 0:01:28]} 22. Nb1 {[%emt 0:00:38] aiming for Nc3.} (22. Qg4 $5 Rc8 $8 23. Qc4 Qxc4 24. Nxc4 Rxc4 25. Bxd6 $14) 22... Rf5 {[%emt 0:00:19]} 23. Qh4 {[%emt 0:00:21] White threatens Qd8+ and mate.} Rd5+ {[%emt 0:00:05]} 24. Nd2 {[%emt 0:00:01] Threatening mate with Qd8+.} h6 $40 {[%emt 0:00:06][%mdl 128] Black is up to no good. Some like it hot} 25. Bf4 $2 {[%emt 0:00:21][%mdl 8192]} (25. Qd8+ $11 {and White stays safe.} Kh7 26. Qh4) 25... Rc5 {[%emt 0:00:28][%csl Gc6][%cal Rc5c1]} 26. Nb3 {[%emt 0:00:13] Dodges Rc1+} Qa4 {[%emt 0:00:01]} 27. Qd8+ {[%emt 0:00:07]} Kh7 {[%emt 0:00:01]} 28. Qb8 {[%emt 0:00:00]} (28. Qxd6 $2 {leads to mate.} Qxb3+ 29. Ke1 Rc1+ 30. Kd2 Qc2#) 28... Rb5 {[%emt 0:00:03] Wards off Qb4} 29. Qc8 {[%emt 0:00:03] And now Qc2+ would win.} Qxb3+ {[%emt 0:00:03]} ({Inferior is} 29... Rxb3 30. Qc2+ Rd3+ 31. Kc1 Qxc2+ 32. Kxc2 $11) 30. Qc2+ {[%emt 0:00:00] White is weak on the light squares} Qxc2+ {[%emt 0:00:05]} 31. Kxc2 $19 {[%emt 0:00:00][%mdl 4096] Endgame KRB-KRB} e5 {[%emt 0:00:04]} 32. Bg3 {[%emt 0:00:01]} Kg6 {[%emt 0:00:05]} (32... Bh3 $19 {has better winning chances. Hoping for ...g5.} 33. a4 Rc5+ 34. Kd3 a5) 33. Rd1 {[%emt 0:00:00]} Rc5+ {[%emt 0:00:02]} 34. Kb3 {[%emt 0:00:03] [#]} (34. Kb1 $17) 34... Rc6 $1 {[%emt 0:00:02]} 35. a4 {[%emt 0:00:03]} Kf5 {[%emt 0:00:01]} 36. a5 {[%emt 0:00:01]} (36. h4 $142) 36... a6 {[%emt 0:00:02]} 37. h4 {[%emt 0:00:03]} Ke4 {[%emt 0:00:06]} 38. Ka4 {[%emt 0:00:05]} Bh3 {[%emt 0:00:02]} 39. b4 {[%emt 0:00:01]} Bd7 {[%emt 0:00:01]} 40. Ka3 {[%emt 0:00:01]} (40. b5 $142 axb5+ 41. Kb4) 40... Rc3+ {[%emt 0:00:01]} 41. Kb2 {[%emt 0:00:00]} Rc6 {[%emt 0:00:02]} (41... Rd3 $19 42. Rc1 Rd2+ 43. Kb3 Be6+ 44. Kc3 Rd3+ 45. Kc2 g6) 42. Rc1 {[%emt 0:00:04][%mdl 8192]} (42. Ka3 $11) 42... Rxc1 {[%emt 0:00:02]} 43. Kxc1 {[%emt 0:00:00] KB-KB} Kd3 $2 {[%emt 0:00:04]} (43... h5 44. Kc2 Kf5 45. e4+ Kg4) 44. Kb2 $2 {[%emt 0:00:01]} (44. b5 Bxb5 45. Kd1) 44... Kc4 $2 {[%emt 0:00:01]} (44... Bb5 {White must now prevent ...h5.} 45. h5 Be8) 45. Ka3 $2 {[%emt 0:00:00]} (45. Kc2) 45... Bb5 {[%emt 0:00:02]} 46. Bh2 {[%emt 0:00:01]} Kc3 {[%emt 0:00:01] ...h5 would be deadly.} 47. Bg3 {[%emt 0:00:01]} Kd3 {[%emt 0:00:05]} (47... h5 $142 48. e4 Bd3) 48. Kb3 {[%emt 0:00:01]} Ke4 {[%emt 0:00:00] ( -> ...Kf5)} 49. Kc3 {[%emt 0:00:00]} Kf5 {[%emt 0:00:03] Black mates.} 50. Kd2 {[%emt 0:00:05]} g5 {[%emt 0:00:02]} 51. hxg5 {[%emt 0:00:04]} Kxg5 {[%emt 0:00:00]} 52. e4 {[%emt 0:00:01]} h5 {[%emt 0:00:06][%cal Bh6h5,Bh5h4][%mdl 32]} 53. Ke3 {[%emt 0:00:00]} Kg4 {[%emt 0:00:00]} 54. Bh2 {[%emt 0:00:03]} h4 {[%emt 0:00:01]} 55. Bg1 {[%emt 0:00:02]} Be2 {[%emt 0:00:02]} 56. Bh2 {[%emt 0:00:06]} Kh3 {[%emt 0:00:01]} 57. Bg1 {[%emt 0:00:03]} Kg2 {[%emt 0:00:01] Weighted Error Value: White=0.96/Black=0.57} 0-1

[Event "CCT Airthings Masters Play-In 2023"]
[Site "Online"]
[Date "2023.02.03"]
[Round "3"]
[White "MrTattaglia"]
[Black "chessdjw"]
[Result "1/2-1/2"]
[ECO "A32"]
[WhiteElo "2514"]
[BlackElo "2240"]
[Annotator "TA"]
[PlyCount "94"]
[EventDate "2023.02.03"]
[EventType "swiss"]
[EventCountry "NET"]
[SourceTitle "playchess.com"]
[Source "ChessBase"]
[SourceQuality "1"]
[TimeControl "600+2"]

{[%evp 11,94,0,6,-64,-48,-48,-15,-34,-29,-47,-35,-36,-33,-72,-23,-31,-27,-49,-46,-46,-12,-12,-5,0,-1,-26,0,0,0,0,0,0,0,0,9,10,7,0,0,0,0,0,25,0,11,0,0,0,5,0,0,0,0,-54,0,0,0,0,0,0,12,0,0,0,0,0,0,0,8,0,0,0,0,0,0,0,0,0,0,0,0,0,0,0,0]} 1. c4 {[%emt 0:00:03]} c5 {[%emt 0:00:04]} 2. Nc3 {[%emt 0:00:03]} Nf6 {[%emt 0:00:03][%cal Bg8f6,Bf6d5,Bd5c3][%mdl 32]} 3. Nf3 {[%emt 0:00:01]} e6 {[%emt 0:00:02][%cal Be7e6,Be6e5][%mdl 32]} 4. d4 {[%emt 0:00:02]} cxd4 {[%emt 0:00:02]} 5. Nxd4 {[%emt 0:00:00]} d5 {[%emt 0:00:00]} 6. cxd5 {[%emt 0:00:07]} Nxd5 {[%emt 0:00:00]} 7. g3 {[%emt 0:00:02] A32: Symmetrical English: 2 Nf3 Nf6 3 d4 cxd4 4 Nxd4 e6.} (7. Bd2 $11) 7... Nxc3 $1 $15 {[%emt 0:00:18]} 8. bxc3 {[%emt 0:00:03]} e5 {[%emt 0:00:01]} (8... Qd5 $5 {[%cal Rd5h1]} 9. f3 Nc6 $11) 9. Nb3 {[%emt 0:00:15]} Qxd1+ {[%emt 0:00:02]} 10. Kxd1 {[%emt 0:00:00] [#]} Nc6 $146 {[%emt 0:00:05]} ({Predecessor:} 10... Bd7 11. Be3 Bc6 12. f3 Ba3 13. Rb1 b6 14. Bh3 Ke7 15. Ke1 Na6 16. Kf2 Rhd8 {½-½ Van der Linde,M-Gavrilakis,N EU-ch U21 fin-B 1973 (5)}) 11. Bg2 {[%emt 0:00:02]} Be6 {[%emt 0:00:32]} 12. Be3 {[%emt 0:00:24]} O-O-O+ {[%emt 0:00:28]} (12... Rc8 $17) 13. Kc2 $11 {[%emt 0:00:26]} Ba3 {[%emt 0:00:24] [#] ( -> ...Bf5+)} 14. Bc1 {[%emt 0:01:25]} Bxc1 {[%emt 0:00:52]} 15. Rhxc1 {[%emt 0:00:06]} Bc4 {[%emt 0:00:01]} 16. Re1 {[%emt 0:00:13]} Kc7 {[%emt 0:00:08]} 17. Bxc6 {[%emt 0:00:08]} bxc6 {[%emt 0:00:21]} 18. Rad1 {[%emt 0:00:27]} g5 {[%emt 0:00:43]} 19. Rxd8 {[%emt 0:00:08]} Rxd8 {[%emt 0:00:02][%mdl 4096] Endgame KRB-KRN} 20. Nd2 {[%emt 0:00:01]} Be6 {[%emt 0:00:11]} 21. c4 {[%emt 0:00:18]} f6 {[%emt 0:01:13]} 22. Kc3 {[%emt 0:00:03]} Bf5 {[%emt 0:00:01]} 23. Nb3 {[%emt 0:00:02]} h5 {[%emt 0:00:07]} 24. Rh1 {[%emt 0:00:10]} g4 {[%emt 0:00:25]} 25. Rf1 {[%emt 0:00:17]} Bg6 {[%emt 0:00:49]} 26. Nc5 {[%emt 0:00:13] [#] aiming for Ne6+.} Rh8 {[%emt 0:00:08]} 27. Rd1 {[%emt 0:00:19] Rd7+ would be deadly.} Bf5 {[%emt 0:00:01] Inhibits Rd7+.} 28. e4 {[%emt 0:01:39]} Bc8 {[%emt 0:00:02]} 29. Rf1 {[%emt 0:00:08]} Kd6 {[%emt 0:00:36]} 30. Nd3 {[%emt 0:00:03]} h4 {[%emt 0:00:04]} 31. Rb1 {[%emt 0:00:06]} Kc7 {[%emt 0:00:10]} 32. Kd2 {[%emt 0:00:03]} ({White should play} 32. Nc5 $11) 32... Be6 {[%emt 0:00:08]} (32... Rd8 $1 $15) 33. Kc3 {[%emt 0:00:04] The position is equal.} hxg3 {[%emt 0:00:05]} 34. hxg3 {[%emt 0:00:00]} Rh2 {[%emt 0:00:01]} 35. Kb4 {[%emt 0:00:24]} Kb6 {[%emt 0:00:09]} 36. Kc3+ {[%emt 0:00:35]} Kc7 {[%emt 0:00:01]} 37. Re1 {[%emt 0:00:01]} Rh8 {[%emt 0:00:03]} 38. Rf1 {[%emt 0:00:04]} Kd6 {[%emt 0:00:17]} 39. Rb1 {[%emt 0:00:32]} Kc7 {[%emt 0:00:01] Against Rb7+} 40. Nc5 {[%emt 0:00:17]} Bc8 {[%emt 0:00:03]} 41. Kd2 {[%emt 0:00:08]} Rh2 {[%emt 0:00:39]} 42. Ke3 {[%emt 0:00:02]} Rh8 {[%emt 0:00:02]} 43. Rd1 {[%emt 0:00:03]} Rh7 {[%emt 0:00:03]} 44. Rf1 {[%emt 0:00:10]} Rh3 {[%emt 0:00:02]} 45. Rb1 {[%emt 0:00:06]} Rh8 {[%emt 0:00:01]} 46. Rd1 {[%emt 0:00:42]} Rh7 {[%emt 0:00:03]} 47. Rb1 {[%emt 0:00:02]} Rh8 {[%emt 0:00:00] Weighted Error Value: White=0.12 (very precise) /Black=0.08 (flawless)} 1/2-1/2

[Event "CCT Airthings Masters Play-In 2023"]
[Site "Online"]
[Date "2023.02.03"]
[Round "3"]
[White "titan013"]
[Black "Arhimow, Mohamed Salem"]
[Result "0-1"]
[ECO "C88"]
[WhiteElo "2514"]
[BlackElo "1567"]
[Annotator "NA"]
[PlyCount "80"]
[EventDate "2023.02.03"]
[EventType "swiss"]
[EventCountry "NET"]
[SourceTitle "playchess.com"]
[Source "ChessBase"]
[SourceQuality "1"]
[TimeControl "600+2"]

1. e4 {[%emt 0:00:24]} e5 {[%emt 0:00:08]} 2. Nf3 {[%emt 0:00:03]} Nc6 {[%emt 0:00:02]} 3. Bb5 {[%emt 0:00:01]} a6 {[%emt 0:00:03]} 4. Ba4 {[%emt 0:00:01]} Nf6 {[%emt 0:00:01]} 5. O-O {[%emt 0:00:01]} Be7 {[%emt 0:00:01]} 6. Re1 {[%emt 0:00:02]} b5 {[%emt 0:00:01]} 7. Bb3 {[%emt 0:00:00]} O-O {[%emt 0:00:00]} 8. d4 {[%emt 0:00:02]} Nxd4 {[%emt 0:00:03]} 9. Nxd4 {[%emt 0:00:01]} exd4 {[%emt 0:00:01]} 10. e5 {[%emt 0:00:00]} Ne8 {[%emt 0:00:02]} 11. Qxd4 {[%emt 0:00:01]} c5 {[%emt 0:00:11]} 12. Qe4 {[%emt 0:00:08]} Rb8 {[%emt 0:00:18]} 13. c4 {[%emt 0:00:02]} Bb7 {[%emt 0:01:00]} 14. Qg4 {[%emt 0:00:27]} bxc4 {[%emt 0:00:17]} 15. Bxc4 {[%emt 0:00:02]} d5 {[%emt 0:00:00]} 16. exd6 {[%emt 0:00:07]} Nxd6 {[%emt 0:00:07]} 17. Bf1 {[%emt 0:00:13]} f5 {[%emt 0:00:38]} 18. Qa4 {[%emt 0:00:05]} Bf6 {[%emt 0:00:18]} 19. Nc3 {[%emt 0:00:06]} Ne4 {[%emt 0:01:01]} 20. Nxe4 {[%emt 0:00:54]} Bxe4 {[%emt 0:00:26]} 21. Qxa6 {[%emt 0:00:30]} Kh8 {[%emt 0:00:19]} 22. a4 {[%emt 0:00:10]} Bd4 {[%emt 0:00:06]} 23. Be3 {[%emt 0:00:10]} Bxe3 {[%emt 0:00:36]} 24. Rxe3 {[%emt 0:00:04]} Rxb2 {[%emt 0:00:01]} 25. Qc4 {[%emt 0:00:29]} Qd4 {[%emt 0:01:48]} 26. a5 {[%emt 0:00:18]} h6 {[%emt 0:00:18]} 27. a6 {[%emt 0:00:16]} Ra8 {[%emt 0:00:06]} 28. Qxd4 {[%emt 0:00:15]} cxd4 {[%emt 0:00:01]} 29. Rea3 {[%emt 0:00:01]} Ra7 {[%emt 0:00:31]} 30. f3 {[%emt 0:00:01]} Bc2 {[%emt 0:00:07]} 31. g3 {[%emt 0:01:47]} Kh7 {[%emt 0:00:03]} 32. h4 {[%emt 0:00:30]} h5 {[%emt 0:00:15]} 33. Ra5 {[%emt 0:01:06]} g6 {[%emt 0:00:44]} 34. Rd5 {[%emt 0:00:04]} d3 {[%emt 0:00:18]} 35. Rd6 {[%emt 0:00:31]} Kg7 {[%emt 0:00:13]} 36. Kf2 {[%emt 0:00:25]} Bb1+ {[%emt 0:00:13]} 37. Ke3 {[%emt 0:00:27]} d2 {[%emt 0:00:01]} 38. Kf4 {[%emt 0:00:33]} Kh6 {[%emt 0:00:11]} 39. Rd4 {[%emt 0:00:09]} Rb4 {[%emt 0:00:04]} 40. Ra4 {[%emt 0:00:54]} Rxa4 {[%emt 0:00:06]} 0-1